bitfinex-derivatives/quotes_ETHF0:USTF0_20240830
["timestamp","ask_amount","ask_price","bid_price","bid_amount"]
[1724989619186,0.39691,2519.3,2519.2,3.03715408]
[1724989619683,12.35107,2519.3,2519.2,2.52475408]
[1724989619993,13.86187566,2519.3,2519.2,0.61181964]
[1724989620190,0.39697,2518.9,2518.8,0.5025]
[1724989620389,0.39697,2518.9,2518.8,3.02836802]
[1724989621086,0.39697,2518.9,2518.8,0.5025]
[1724989621281,5.35981,2518.9,2518.8,1.49491216]
[1724989621687,5.35981,2518.9,2518.8,0.61210995]
[1724989622182,0.39701,2518.7,2518.6,0.52555132]
[1724989622380,0.39701,2518.7,2518.6,1.40851121]
[1724989622586,0.39701,2518.7,2518.6,3.05195283]
[1724989622785,0.39701,2518.7,2518.6,2.02073646]
[1724989622986,0.39701,2518.7,2518.6,3.05190952]
[1724989623185,0.39701,2518.7,2518.6,2.02073646]
[1724989625492,0.39701,2518.7,2518.6,0.52555132]
[1724989625694,0.39701,2518.7,2518.6,2.02127317]
[1724989627389,0.39701,2518.7,2518.6,2.02133068]
[1724989627792,0.39701,2518.7,2518.6,1.13799173]
[1724989631491,0.39701,2518.7,2518.6,0.52555132]
[1724989631795,0.39701,2518.7,2518.6,1.13767369]
[1724989631994,0.39701,2518.7,2518.6,2.56767369]
[1724989632589,0.39701,2518.7,2518.6,1.95555132]
[1724989632786,0.39701,2518.7,2518.6,2.56756331]
[1724989633695,1.38953,2518.7,2518.6,1.13756331]
[1724989633896,0.39701,2518.7,2518.6,1.13756331]
[1724989634599,0.39701,2518.7,2518.6,0.52555132]
[1724989635100,0.39701,2518.7,2518.6,1.13747994]
[1724989635292,0.39701,2518.7,2518.6,0.52555132]
[1724989636396,0.39701,2518.7,2518.6,1.95555132]
[1724989641705,0.39701,2518.7,2518.6,0.52555132]
[1724989642798,0.39701,2518.7,2518.6,1.1375035]
[1724989644604,0.39701,2518.7,2518.6,0.52555132]
[1724989645001,0.39701,2518.7,2518.6,1.13747941]
[1724989646001,0.39701,2518.7,2518.6,0.52555132]
[1724989646201,0.39701,2518.7,2518.6,1.13745613]
[1724989648310,0.39701,2518.7,2518.6,2.01998571]
[1724989649604,0.39701,2518.7,2518.6,2.01996419]
[1724989649800,0.39701,2518.7,2518.6,2.02001763]
[1724989652703,0.39701,2518.7,2518.6,1.40811358]
[1724989652899,0.39701,2518.7,2518.6,2.02021799]
[1724989659320,0.39701,2518.7,2518.6,0.52555132]
[1724989659614,0.39701,2518.7,2518.6,2.02020175]
[1724989660016,0.39701,2518.7,2518.6,3.05104539]
[1724989660418,3.40163,2519.3,2518.7,0.99252]
[1724989660720,3.40163,2519.8,2519.2,4.6378]
[1724989661020,4.83163,2520.5,2520.1,0.39678]
[1724989661324,9.03188358,2520.8,2520.3,0.39675]
[1724989661515,0.39669,2520.7,2520.4,1.15240092]
[1724989661713,0.39671,2520.6,2520.4,1.15240092]
[1724989662019,0.39671,2520.6,2520.5,1.49280547]
[1724989662220,0.39675,2520.3,2520.2,0.5125]
[1724989662422,0.39678,2520.1,2520.0,0.00595132]
[1724989662816,0.39678,2520.2,2520.0,0.61703823]
[1724989663010,0.39676,2520.3,2520.0,0.00595132]
[1724989663310,4.4974656,2520.4,2520.2,1.43]
[1724989663515,4.4974656,2520.4,2520.3,0.5039]
[1724989663516,0.39674,2520.4,2520.3,0.5039]
[1724989664124,4.6852,2520.7,2520.1,1.43]
[1724989664125,1.43,2520.6,2520.1,1.43]
[1724989664315,1.82671,2520.6,2520.2,1.00766771]
[1724989664517,1.82671,2520.6,2520.2,0.39677]
[1724989664717,0.39672,2520.5,2520.1,2.33068]
[1724989665820,0.39672,2520.5,2520.2,0.39677]
[1724989666321,1.82672,2520.6,2520.3,0.39675]
[1724989666517,3.2078,2520.7,2520.3,0.39675]
[1724989666718,0.39671,2520.6,2520.3,0.39675]
[1724989666916,0.39671,2520.6,2520.4,0.5414]
[1724989667117,0.39671,2520.6,2520.5,0.5538]
[1724989668825,0.39677,2520.2,2520.1,0.5039]
[1724989669023,0.39676,2520.3,2520.1,1.0577]
[1724989670418,0.39675,2520.4,2520.1,1.0577]
[1724989670619,6.60943,2520.7,2520.1,2.4877]
[1724989670818,0.39672,2520.6,2520.3,1.43]
[1724989671122,0.39674,2520.4,2520.3,1.43]
[1724989671325,0.39674,2520.4,2520.1,2.4877]
[1724989672028,2.42178,2520.6,2520.1,2.4877]
[1724989672323,0.39676,2520.3,2520.1,2.4877]
[1724989673941,0.39677,2520.2,2520.1,2.4877]
[1724989674137,1.3887,2520.2,2520.1,0.5538]
[1724989674737,0.39677,2520.3,2520.1,0.5538]
[1724989674938,1.43,2520.5,2520.1,0.5538]
[1724989675239,0.39677,2520.2,2520.1,0.5538]
[1724989675634,0.39675,2520.4,2520.1,0.5538]
[1724989675830,0.39676,2520.3,2520.1,0.5538]
[1724989676234,0.39673,2520.5,2520.2,0.39676]
[1724989676540,0.39673,2520.5,2520.1,1.9838]
[1724989676541,1.43,2520.6,2520.1,2.38057]
[1724989676743,0.39674,2520.4,2520.1,2.38057]
[1724989677444,0.39676,2520.3,2520.1,1.9838]
[1724989677639,0.39677,2520.2,2520.1,1.9838]
[1724989677940,0.39674,2520.4,2520.1,2.38057]
[1724989678543,0.39675,2520.3,2520.1,2.38057]
[1724989680347,4.51382313,2520.5,2520.1,2.38057]
[1724989680544,0.39676,2520.3,2520.1,2.38057]
[1724989680944,0.39676,2520.3,2520.1,1.9838]
[1724989681652,0.39676,2520.3,2520.1,2.38058]
[1724989682154,0.39676,2520.3,2520.1,1.9838]
[1724989682340,0.39677,2520.2,2520.1,1.9838]
[1724989683051,0.39677,2520.2,2520.1,0.5538]
[1724989683251,1.38875,2520.1,2520.0,0.00595132]
[1724989683551,11.10865458,2520.1,2520.0,0.00595132]
[1724989683741,9.67865458,2520.1,2520.0,0.00595132]
[1724989684048,0.39678,2520.1,2520.0,0.00595132]
[1724989684246,0.39678,2520.2,2520.0,0.00595132]
[1724989684450,0.39676,2520.3,2520.0,0.00595132]
[1724989684957,0.39677,2520.2,2520.0,0.00595132]
[1724989685150,0.39675,2520.4,2520.1,0.39678]
[1724989685344,0.39675,2520.4,2520.0,3.21375132]
[1724989685345,0.39678,2520.1,2520.0,0.00595132]
[1724989685742,0.39678,2520.2,2520.0,0.00595132]
[1724989686149,0.39678,2520.1,2520.0,0.00595132]
[1724989686443,0.39678,2520.2,2520.0,0.00595132]
[1724989687250,0.39678,2520.2,2520.0,0.40275132]
[1724989687646,0.39678,2520.2,2520.1,0.5537]
[1724989688258,0.39674,2520.4,2520.1,1.9837]
[1724989688448,0.39673,2520.5,2520.2,0.39676]
[1724989688749,4.95314251,2520.5,2520.2,0.39676]
[1724989688952,0.39674,2520.4,2520.2,0.39676]
[1724989689147,4.95314251,2520.5,2520.2,0.39676]
[1724989689351,3.60451,2520.6,2520.3,1.82674]
[1724989689654,3.60451,2520.6,2520.4,1.59304]
[1724989690055,3.60451,2520.6,2520.5,0.5537]
[1724989690851,0.39671,2520.6,2520.5,0.5537]
[1724989693160,0.3967,2520.7,2520.5,0.5537]
[1724989693348,3.60447,2520.9,2520.6,0.3967]
[1724989693652,4.40075264,2520.8,2520.5,0.95041]
[1724989693850,4.40075264,2520.8,2520.5,0.5537]
[1724989693851,0.3967,2520.7,2520.5,0.5537]
[1724989694051,4.79744264,2520.8,2520.5,0.95042]
[1724989694247,4.79744264,2520.8,2520.6,0.3967]
[1724989695055,4.79744264,2520.8,2520.5,0.95042]
[1724989695354,4.79743264,2520.8,2520.6,0.39671]
[1724989696053,3.79825,2521.2,2521.0,0.39664]
[1724989696248,0.39662,2521.2,2521.1,1.2382]
[1724989696449,0.39662,2521.2,2521.1,1.8533]
[1724989696854,0.39664,2521.1,2520.8,3.60447]
[1724989697154,0.39664,2521.1,2520.9,0.5883]
[1724989697656,4.93426752,2521.2,2520.9,0.98496]
[1724989697953,4.93426752,2521.2,2520.9,0.5883]
[1724989697954,0.39663,2521.1,2520.9,0.5883]
[1724989698850,4.53764752,2521.2,2520.9,0.5883]
[1724989698851,0.39664,2521.0,2520.9,0.5883]
[1724989699448,0.39664,2521.0,2520.5,4.6378]
[1724989699449,3.9664,2521.0,2520.5,4.6378]
[1724989699651,0.39667,2520.8,2520.6,0.5883]
[1724989700055,0.39667,2520.8,2520.6,1.2095]
[1724989700261,0.39669,2520.7,2520.6,1.2095]
[1724989701948,2.7562,2521.1,2520.6,1.2095]
[1724989702148,0.39668,2520.8,2520.7,0.5909]
[1724989702656,0.39667,2520.9,2520.7,4.5581]
[1724989702960,0.39667,2520.9,2520.7,0.5909]
[1724989703561,0.39667,2520.9,2520.7,0.98759]
[1724989704052,0.39663,2521.1,2520.9,0.39665]
[1724989704248,0.39663,2521.1,2521.0,0.6147]
[1724989704449,2.42146,2521.4,2521.0,0.6147]
[1724989704654,0.39663,2521.2,2521.1,0.6398]
[1724989706467,3.9664,2521.2,2520.7,2.41758]
[1724989706656,6.71372885,2521.3,2520.7,2.41758]
[1724989706657,0.39665,2521.0,2520.8,2.74731246]
[1724989706853,0.39665,2521.0,2520.9,1.4905073]
[1724989707056,0.39665,2521.0,2520.9,0.61032719]
[1724989707461,0.39665,2521.0,2520.8,1.65347]
[1724989707953,0.39665,2521.0,2520.9,0.61033352]
[1724989708156,0.39665,2521.0,2520.9,1.22061301]
[1724989708361,6.78467,2521.0,2520.9,1.22061301]
[1724989708658,11.28768572,2521.0,2520.9,0.61033352]
[1724989709765,18.27930572,2521.0,2520.9,0.61033352]
[1724989710164,10.84930572,2521.0,2520.9,0.61033352]
[1724989710364,9.85768572,2521.0,2520.9,0.61033352]
[1724989712864,0.39669,2520.7,2520.5,5.03451]
[1724989713061,0.39669,2520.7,2520.6,1.49027137]
[1724989713560,0.39668,2520.8,2520.6,1.88698137]
[1724989713766,2.42169,2520.8,2520.5,3.2078]
[1724989713963,4.60355745,2520.7,2520.6,0.61029029]
[1724989714274,0.3967,2520.7,2520.6,1.49028269]
[1724989714573,0.39669,2520.7,2520.6,1.49028269]
[1724989716470,0.39669,2520.7,2520.6,5.45748269]
[1724989716869,0.39669,2520.7,2520.6,1.49028269]
[1724989717168,0.39669,2520.7,2520.6,0.61023225]
[1724989717364,0.39669,2520.7,2520.5,5.03452]
[1724989717572,0.39669,2520.7,2520.6,0.61013529]
[1724989717769,0.39669,2520.7,2520.5,1.82672]
[1724989717971,0.39669,2520.7,2520.6,0.6100406]
[1724989718270,0.39669,2520.7,2520.5,1.43]
[1724989718466,0.39669,2520.7,2520.6,0.60999714]
[1724989718675,2.81842,2520.7,2520.6,0.60999714]
[1724989718866,0.39672,2520.5,2520.4,1.2795]
[1724989719065,0.39672,2520.5,2520.4,1.88948194]
[1724989719370,5.35573,2520.5,2520.4,1.88948194]
[1724989720065,5.35573,2520.5,2520.4,1.25998194]
[1724989720261,5.35573,2520.5,2520.4,0.65]
[1724989721066,5.35573,2520.5,2520.4,1.26001127]
[1724989721470,5.35573,2520.5,2520.4,0.65]
[1724989722171,9.4994891,2520.5,2520.4,0.65]
[1724989722364,9.4994891,2520.5,2520.4,1.25997112]
[1724989723780,9.4994891,2520.5,2520.4,0.65]
[1724989724278,9.4994891,2520.5,2520.4,1.25999628]
[1724989725275,10.4912991,2520.5,2520.4,0.60999628]
[1724989725467,1.3887,2520.2,2520.1,1.2475]
[1724989725668,2.8187,2520.2,2520.1,1.25702009]
[1724989725868,11.90904788,2520.2,2520.0,0.00595132]
[1724989726170,2.38072,2520.1,2520.0,0.00595132]
[1724989726374,10.98652,2520.1,2520.0,0.00595132]
[1724989726680,15.21351182,2520.1,2520.0,0.00595132]
[1724989727377,7.83157182,2520.1,2520.0,0.00595132]
[1724989727576,3.60458,2520.1,2520.0,0.62935132]
[1724989727773,4.59655,2520.1,2520.0,0.62935132]
[1724989727973,4.59655,2520.1,2520.0,1.23983142]
[1724989728278,4.59655,2520.1,2520.0,0.62935132]
[1724989728778,10.98652,2520.1,2520.0,0.00595132]
[1724989729083,15.13656206,2520.1,2520.0,0.00595132]
[1724989732680,21.13656206,2520.1,2520.0,0.00595132]
[1724989734583,15.13656206,2520.1,2520.0,0.00595132]
[1724989734874,9.73856206,2520.1,2520.0,0.00595132]
[1724989735081,10.17659206,2520.1,2520.0,0.00595132]
[1724989736674,3.60458,2520.1,2520.0,3.97395132]
[1724989737273,3.60458,2520.1,2520.0,0.00595132]
[1724989737571,0.39678,2520.1,2520.0,0.00595132]
[1724989738970,3.2078,2520.3,2520.0,5.80075132]
[1724989739176,3.60456,2520.3,2520.1,1.2301]
[1724989739573,3.60456,2520.3,2520.2,0.6271]
[1724989740380,6.02645,2520.3,2520.2,0.6271]
[1724989741774,3.60456,2520.3,2520.2,0.6271]
[1724989742574,4.59645,2520.3,2520.2,0.6271]
[1724989743271,1.38865,2520.3,2520.2,0.6271]
[1724989746182,0.39676,2520.3,2520.2,0.6271]
[1724989746979,1.43,2520.5,2520.2,0.6271]
[1724989747182,0.39675,2520.3,2520.2,0.6271]
[1724989749484,1.38864,2520.3,2520.2,0.6271]
[1724989749873,2.81864,2520.3,2520.2,0.6271]
[1724989754081,1.82675,2520.3,2520.2,0.6271]
[1724989754589,1.43,2520.5,2520.2,0.6271]
[1724989754791,0.39674,2520.4,2520.2,0.6271]
[1724989756198,1.43,2520.5,2520.2,0.6271]
[1724989756199,0.39675,2520.3,2520.2,0.6271]
[1724989756791,0.39675,2520.4,2520.2,0.6271]
[1724989756989,4.19959,2520.6,2520.2,0.6271]
[1724989756990,4.6378,2520.6,2520.2,0.6271]
[1724989757286,0.39673,2520.5,2520.3,0.60980043]
[1724989757493,0.39673,2520.5,2520.4,0.60958228]
[1724989757494,0.39672,2520.5,2520.4,0.60958228]
[1724989759590,0.39672,2520.5,2520.2,1.02386]
[1724989759792,0.39672,2520.5,2520.4,0.60970596]
[1724989759983,3.40163,2520.9,2520.4,0.60970596]
[1724989760185,3.40163,2520.9,2520.6,0.3967]
[1724989760186,3.7983,2520.9,2520.6,0.3967]
[1724989760498,3.79829,2520.9,2520.7,2.50700596]
[1724989760798,3.79829,2520.9,2520.8,0.60970596]
[1724989761395,3.40163,2520.9,2520.8,4.97357596]
[1724989761590,3.40163,2520.9,2520.8,5.85234257]
[1724989763096,3.79829,2520.9,2520.8,5.45567257]
[1724989763294,3.79829,2520.9,2520.8,1.48847257]
[1724989763496,3.40163,2520.9,2520.8,1.48847257]
[1724989763896,3.40163,2520.9,2520.8,1.88514257]
[1724989764494,3.40163,2520.9,2520.8,1.48847257]
[1724989764895,0.39665,2521.0,2520.8,1.48847257]
[1724989765093,3.2078,2521.3,2520.9,5.45567257]
[1724989765296,3.2078,2521.3,2520.8,4.6378]
[1724989765297,0.39663,2521.1,2521.0,1.48847257]
[1724989765592,6.97152522,2521.1,2521.0,0.60970596]
[1724989765792,10.93792522,2521.1,2521.0,0.60970596]
[1724989766193,0.39667,2520.8,2520.7,1.8973]
[1724989766406,0.39667,2520.8,2520.7,4.41117684]
[1724989766701,5.03447,2520.9,2520.7,1.8973]
[1724989766900,5.03447,2520.9,2520.7,4.41106659]
[1724989767106,5.03447,2520.9,2520.8,1.48780772]
[1724989767295,5.03447,2520.9,2520.8,1.48778555]
[1724989767797,5.03447,2520.9,2520.8,0.60921929]
[1724989768594,5.03447,2520.9,2520.8,1.25051929]
[1724989768793,5.03447,2520.9,2520.8,0.60921929]
[1724989769000,14.28116609,2520.9,2520.8,0.60921929]
[1724989769194,14.28116609,2520.9,2520.7,1.65624885]
[1724989769195,1.38836,2520.8,2520.7,1.65624885]
[1724989769507,7.08006434,2520.8,2520.7,1.65624885]
[1724989769703,11.04726434,2520.8,2520.7,1.65624885]
[1724989769900,11.04726434,2520.8,2520.7,1.02604885]
[1724989770098,11.71656434,2520.8,2520.7,1.02604885]
[1724989770298,12.05706434,2520.8,2520.7,1.02604885]
[1724989771007,13.04875434,2520.8,2520.7,1.02604885]
[1724989772708,13.20885264,2520.8,2520.7,1.02604885]
[1724989772906,12.03895434,2520.8,2520.7,1.02604885]
[1724989773106,11.04726434,2520.8,2520.7,1.02604885]
[1724989773701,11.04726434,2520.8,2520.6,1.2187]
[1724989773702,0.39669,2520.7,2520.6,1.2187]
[1724989773902,4.26170434,2520.8,2520.6,1.2187]
[1724989774715,0.39669,2520.7,2520.6,1.2187]
[1724989774904,0.39669,2520.7,2520.6,1.82842222]
[1724989775312,0.39669,2520.7,2520.6,1.2187]
[1724989775703,0.39669,2520.7,2520.6,1.82842725]
[1724989776813,0.39669,2520.7,2520.6,1.82854953]
[1724989778215,2.81842,2520.7,2520.6,1.20124953]
[1724989778409,2.81842,2520.7,2520.3,0.6196]
[1724989778410,6.72373,2520.7,2520.3,0.6196]
[1724989778714,2.81859,2520.4,2520.3,0.6196]
[1724989779119,2.81859,2520.4,2520.3,1.23026071]
[1724989780113,0.39674,2520.4,2520.3,1.23026071]
[1724989780510,0.39674,2520.4,2520.3,2.11086019]
[1724989781810,0.39674,2520.4,2520.3,0.6196]
[1724989782019,0.39674,2520.4,2520.3,1.23013661]
[1724989782208,0.39674,2520.4,2520.3,2.11063281]
[1724989783418,0.39674,2520.4,2520.3,2.11079782]
[1724989785705,0.39671,2520.6,2520.3,2.11079782]
[1724989785919,0.39672,2520.5,2520.4,1.49119782]
[1724989786110,4.54411922,2520.5,2520.4,1.49119782]
[1724989786312,5.53592922,2520.5,2520.4,1.49119782]
[1724989787015,4.14739922,2520.5,2520.4,1.88793782]
[1724989787220,3.40163,2520.8,2520.7,0.39669]
[1724989787411,3.40163,2520.8,2520.7,1.88788782]
[1724989787617,3.40163,2520.8,2520.7,12.88309445]
[1724989787815,3.40163,2520.8,2520.7,53.44286224]
[1724989788014,3.40163,2520.8,2520.7,48.32297655]
[1724989788612,3.7983,2520.8,2520.7,7.12628655]
[1724989788920,0.39667,2520.8,2520.7,2.13119625]
[1724989789707,0.39667,2520.8,2520.7,0.6408]
[1724989790037,0.39667,2520.8,2520.7,2.13171634]
[1724989790410,0.39667,2520.8,2520.7,1.25129259]
[1724989792617,1.43,2520.9,2520.7,1.25129259]
[1724989792826,1.82667,2520.9,2520.8,0.61049259]
[1724989793128,6.02051436,2520.9,2520.8,0.61049259]
[1724989793428,0.39667,2520.8,2520.7,0.6408]
[1724989793630,0.39667,2520.8,2520.7,1.2515644]
[1724989797621,0.39667,2520.8,2520.7,2.13223759]
[1724989798127,0.39667,2520.8,2520.7,2.13223233]
[1724989799725,0.39667,2520.8,2520.7,1.2515644]
[1724989799931,0.39667,2520.8,2520.7,2.13227831]
[1724989801430,9.92486602,2520.8,2520.7,0.6107644]
[1724989801732,10.25996602,2520.8,2520.7,0.6107644]
[1724989802332,17.25165602,2520.8,2520.7,0.6107644]
[1724989802632,17.58675602,2520.8,2520.7,0.6107644]
[1724989802828,17.58675602,2520.8,2520.3,0.6141]
[1724989802829,0.39674,2520.4,2520.3,0.6141]
[1724989804135,0.39673,2520.5,2520.3,0.6141]
[1724989804322,1.82671,2520.6,2520.3,1.01085]
[1724989804525,1.43,2520.6,2520.3,1.01085]
[1724989804729,1.82671,2520.6,2520.3,0.6141]
[1724989806735,0.39672,2520.5,2520.3,0.6141]
[1724989807732,0.39669,2520.7,2520.3,0.6141]
[1724989807933,0.3967,2520.7,2520.4,0.39673]
[1724989808133,4.73909158,2520.7,2520.4,0.39673]
[1724989808529,0.39671,2520.6,2520.3,4.21864]
[1724989808733,4.73909158,2520.7,2520.4,0.39674]
[1724989809233,0.39671,2520.6,2520.4,0.39674]
[1724989809537,0.39671,2520.6,2520.3,4.21864]
[1724989810835,0.39671,2520.6,2520.4,0.39674]
[1724989811030,0.39671,2520.6,2520.4,0.4134043]
[1724989811538,0.39671,2520.6,2520.4,0.8101443]
[1724989812131,4.73909158,2520.7,2520.4,0.8101443]
[1724989812334,0.39671,2520.6,2520.4,0.8101343]
[1724989812735,0.3967,2520.7,2520.4,0.8101343]
[1724989812936,0.39671,2520.6,2520.4,0.8101343]
[1724989813739,0.39672,2520.5,2520.4,0.8101343]
[1724989813937,0.39672,2520.5,2520.4,0.4134043]
[1724989814141,0.39672,2520.5,2520.4,4.3806043]
[1724989814341,0.39672,2520.5,2520.4,2.93110307]
[1724989814538,0.39672,2520.5,2520.4,6.89830307]
[1724989814844,0.39672,2520.5,2520.4,7.29482138]
[1724989815044,0.39672,2520.6,2520.4,7.29482138]
[1724989815244,0.39672,2520.6,2520.5,2.51747708]
[1724989815739,0.39672,2520.6,2520.4,0.8101443]
[1724989815932,0.39672,2520.6,2520.5,2.51748742]
[1724989816740,0.3967,2520.7,2520.5,2.91420742]
[1724989817038,0.3967,2520.7,2520.6,3.16138742]
[1724989817234,0.3967,2520.7,2520.6,3.79868742]
[1724989818348,0.3967,2520.7,2520.6,1.2812]
[1724989818647,0.3967,2520.7,2520.6,3.79819971]
[1724989818846,0.3967,2520.7,2520.6,7.76539971]
[1724989819937,0.3967,2520.7,2520.6,6.88555454]
[1724989820147,0.3967,2520.7,2520.6,7.76512152]
[1724989820842,8.03943,2521.1,2520.6,7.76512152]
[1724989821046,0.39664,2521.0,2520.8,0.39667]
[1724989821242,0.39666,2521.0,2520.8,0.39667]
[1724989821448,0.39666,2521.0,2520.9,1.48906566]
[1724989821747,0.39666,2521.0,2520.9,1.48908863]
[1724989821942,0.39666,2521.0,2520.9,2.51601714]
[1724989822246,0.39666,2521.0,2520.9,1.48908863]
[1724989823543,9.63511691,2521.0,2520.9,0.60974539]
[1724989823849,1.38842,2520.7,2520.6,0.6439]
[1724989824037,1.38842,2520.7,2520.6,2.132421]
[1724989825042,1.38842,2520.7,2520.6,0.6439]
[1724989825252,1.38842,2520.7,2520.6,1.4886509]
[1724989825445,4.92722,2520.7,2520.6,2.09823258]
[1724989826637,14.45642237,2520.7,2520.6,2.09823258]
[1724989827238,14.45642237,2520.7,2520.6,1.4886509]
[1724989827442,14.45642237,2520.7,2520.6,2.09838093]
[1724989828450,14.45642237,2520.7,2520.6,1.4886509]
[1724989828639,14.45642237,2520.7,2520.6,2.09843813]
[1724989828841,14.45642237,2520.7,2520.6,2.70824716]
[1724989829049,1.38864,2520.3,2520.2,0.61505208]
[1724989829249,2.81864,2520.3,2520.2,1.22503513]
[1724989829446,11.38291026,2520.3,2520.2,1.22503513]
[1724989829753,1.38875,2520.1,2520.0,0.00595132]
[1724989829951,7.01852,2520.1,2520.0,0.61554598]
[1724989830158,7.01852,2520.1,2519.6,0.6338]
[1724989830159,1.38898,2519.7,2519.6,0.6338]
[1724989830446,1.38898,2519.7,2519.3,1.2836]
[1724989830447,0.3969,2519.4,2519.3,1.2836]
[1724989830648,0.99217,2519.6,2519.3,2.7732826]
[1724989830649,0.39689,2519.5,2519.3,2.7732826]
[1724989830849,1.82687,2519.6,2519.4,1.4896826]
[1724989831048,3.40163,2519.8,2519.5,2.91952496]
[1724989831250,3.40163,2519.8,2519.6,5.4581528]
[1724989831444,3.40163,2519.8,2519.7,1.2537305]
[1724989831747,3.40163,2519.8,2519.7,6.72563687]
[1724989831949,3.2078,2520.1,2519.7,12.72563687]
[1724989832157,0.40272,2520.3,2519.8,1.48912479]
[1724989832448,0.39677,2520.2,2519.9,0.6099305]
[1724989832649,0.39677,2520.2,2520.0,1.2494305]
[1724989832853,0.39677,2520.2,2520.1,1.2334305]
[1724989833057,0.39677,2520.2,2520.1,1.8572305]
[1724989833351,0.39677,2520.2,2520.1,1.2473]
[1724989834947,0.39677,2520.2,2520.0,0.6395]
[1724989834948,0.39678,2520.1,2520.0,0.6395]
[1724989839054,4.99600533,2520.2,2520.0,0.6395]
[1724989839245,0.00595,2520.3,2520.0,5.0043]
[1724989839948,0.00595,2520.3,2520.1,0.39678]
[1724989840156,0.00595,2520.3,2520.2,0.6348]
[1724989840758,0.00595,2520.3,2520.2,5.21217532]
[1724989840949,0.00595,2520.3,2520.2,5.84697532]
[1724989841352,0.00595,2520.3,2520.2,5.2376]
[1724989841551,0.00595,2520.3,2520.2,6.24368343]
[1724989841760,0.00595,2520.3,2520.2,5.84691343]
[1724989842055,0.00595,2520.3,2520.2,6.24368343]
[1724989842257,0.4027,2520.3,2520.2,5.84691343]
[1724989843658,0.00595,2520.3,2520.2,5.84691343]
[1724989843859,10.61175,2520.3,2519.5,0.64336928]
[1724989844155,6.6378,2519.7,2519.6,1.8338]
[1724989844360,3.2078,2519.7,2519.6,1.8338]
[1724989844856,6.6378,2520.2,2519.6,5.8026]
[1724989845059,3.60458,2520.2,2519.7,0.60945618]
[1724989845254,0.40271,2520.3,2519.6,5.0416]
[1724989845455,0.40271,2520.3,2519.7,1.48819353]
[1724989845757,0.40271,2520.3,2519.8,1.48812247]
[1724989845954,0.39677,2520.2,2519.9,3.81716334]
[1724989846153,0.39677,2520.2,2520.0,1.81076334]
[1724989846354,0.39678,2520.1,2520.0,1.8222]
[1724989846946,0.39678,2520.1,2520.0,6.3995239]
[1724989847147,0.39678,2520.2,2520.0,6.3995239]
[1724989847353,0.00595,2520.3,2520.0,1.8222]
[1724989847553,0.00595,2520.3,2520.0,5.7902]
[1724989847754,0.39678,2520.2,2520.0,5.7902]
[1724989848057,0.39678,2520.1,2520.0,1.8222]
[1724989848654,0.39678,2520.1,2520.0,2.43149653]
[1724989848856,0.39678,2520.1,2520.0,1.8222]
[1724989849251,0.39678,2520.2,2520.0,2.43147897]
[1724989849463,0.39678,2520.2,2520.0,1.8222]
[1724989849659,3.83271,2520.3,2520.0,1.8222]
[1724989850160,0.40271,2520.3,2520.0,1.8222]
[1724989851253,0.39678,2520.2,2520.0,1.8222]
[1724989851452,3.83271,2520.3,2520.0,1.8222]
[1724989852953,0.39678,2520.1,2520.0,1.8222]
[1724989853157,3.60458,2520.1,2520.0,1.8222]
[1724989857967,5.03458,2520.1,2520.0,1.8222]
[1724989861670,0.39685,2519.7,2519.6,0.5913]
[1724989861876,1.82685,2519.7,2519.6,0.60962596]
[1724989862079,0.39688,2519.5,2519.4,0.00595132]
[1724989862267,7.03468,2519.5,2519.4,0.00595132]
[1724989863573,16.38957071,2519.5,2519.4,0.00595132]
[1724989865294,23.38178071,2519.5,2519.4,1.32e-06]
[1724989865482,0.39696,2519.0,2518.9,1.2149]
[1724989865683,7.03476,2519.0,2518.9,1.2149]
[1724989867780,0.39699,2518.8,2518.7,0.65305132]
[1724989871090,3.60479,2518.8,2518.7,0.65305132]
[1724989872580,0.39699,2518.8,2518.7,0.65305132]
[1724989872780,7.03479,2518.8,2518.7,0.65305132]
[1724989872989,8.02727,2518.8,2518.7,0.65305132]
[1724989874194,7.03479,2518.8,2518.7,0.65305132]
[1724989875583,8.02727,2518.8,2518.7,0.65305132]
[1724989877001,4.81947,2518.8,2518.7,0.65305132]
[1724989877302,8.02727,2518.8,2518.7,0.65305132]
[1724989877493,7.03479,2518.8,2518.7,0.65305132]
[1724989880592,7.03479,2518.8,2518.7,0.00595132]
[1724989881392,3.43595132,2519.0,2518.7,0.00595132]
[1724989881586,0.40291132,2519.0,2518.7,0.00595132]
[1724989881791,0.40291132,2519.0,2518.7,0.40294132]
[1724989881988,0.39697,2518.9,2518.8,0.6117]
[1724989882192,0.39697,2518.9,2518.8,1.2145]
[1724989882388,0.39697,2518.9,2518.8,5.1849]
[1724989884700,0.39697,2518.9,2518.8,5.58189]
[1724989886199,1.83292132,2519.0,2518.9,0.39697]
[1724989886504,1.83292132,2519.0,2518.9,0.6484]
[1724989888001,1.83292132,2519.0,2518.9,1.04537]
[1724989888390,1.83292132,2519.0,2518.9,0.6484]
[1724989889507,0.00595132,2519.0,2518.9,1.04537]
[1724989889696,7.79118,2519.6,2519.4,0.39688]
[1724989889697,1.82687,2519.6,2519.4,0.39688]
[1724989889901,1.82686,2519.7,2519.5,1.65887]
[1724989890100,0.39686,2519.6,2519.5,1.65887]
[1724989890306,1.82686,2519.6,2519.5,1.262]
[1724989891607,0.39691,2519.3,2519.2,40.8]
[1724989891803,1.82691,2519.3,2519.2,1.262]
[1724989892001,0.39691,2519.3,2519.2,1.262]
[1724989892409,3.43,2519.4,2519.2,1.262]
[1724989892795,3.43,2519.4,2519.3,0.6326]
[1724989892796,3.8269,2519.4,2519.3,0.6326]
[1724989893905,4.53143,2519.7,2519.3,0.6326]
[1724989893906,3.82687,2519.6,2519.3,4.6022]
[1724989894102,3.43,2519.6,2519.3,1.0295]
[1724989894505,0.39688,2519.5,2519.3,1.0295]
[1724989896606,3.43,2519.6,2519.3,1.0295]
[1724989896808,0.3969,2519.4,2519.3,1.0295]